fUST/lending_fUST_20250607
["ID","MTS","AMOUNT","RATE_DAILY","PERIOD"]
[364803420,1749246643768,-440.0,0.00021095,2]
[364803422,1749246643777,-150.32,0.00021095,2]
[364803423,1749246643787,-440.0,0.00021095,2]
[364803425,1749246643796,-518.5,0.00021095,2]
[364803427,1749246643806,-440.0,0.00021095,2]
[364803429,1749246643815,-1661.79,0.00021095,2]
[364803432,1749246643825,-414.09,0.00021095,2]
[364803433,1749246643835,-1308.92,0.00021095,2]
[364803436,1749246643844,-2532.66,0.00021095,2]
[364803438,1749246643860,-2533.5,0.00021095,2]
[364803441,1749246643875,-440.0,0.00021095,2]
[364803443,1749246643886,-718.97,0.00021095,2]
[364803445,1749246643897,-1045.46,0.00021095,2]
[364803447,1749246643907,-440.0,0.00021095,2]
[364803450,1749246643918,-301.41,0.00021095,2]
[364803452,1749246643928,-440.0,0.00021095,2]
[364803454,1749246643939,-164.64,0.00021095,2]
[364803456,1749246643949,-440.0,0.00021095,2]
[364803458,1749246643959,-1598.13,0.00021095,2]
[364803460,1749246643970,-440.0,0.00021095,2]
[364803462,1749246643980,-440.0,0.00021095,2]
[364803464,1749246643991,-440.0,0.00021095,2]
[364803466,1749246644001,-440.0,0.00021095,2]
[364803468,1749246644012,-440.0,0.00021095,2]
[364803471,1749246644022,-440.0,0.00021095,2]
[364803473,1749246644032,-440.0,0.00021095,2]
[364803475,1749246644043,-440.0,0.00021095,2]
[364803477,1749246644053,-1467.14,0.00021095,2]
[364803479,1749246644063,-440.0,0.00021095,2]
[364803481,1749246644074,-1217.48,0.00021095,2]
[364803483,1749246644084,-545.3,0.00021095,2]
[364803485,1749246644095,-440.0,0.00021095,2]
[364803487,1749246644104,-2756.04,0.00021095,2]
[364803489,1749246644116,-440.0,0.00021095,2]
[364803491,1749246644126,-440.0,0.00021095,2]
[364803494,1749246644137,-440.0,0.00021095,2]
[364803496,1749246644148,-440.0,0.00021095,2]
[364803498,1749246644158,-440.0,0.00021095,2]
[364803500,1749246644168,-440.0,0.00021095,2]
[364803502,1749246644179,-1347.95,0.00021095,2]
[364803504,1749246644189,-440.0,0.00021095,2]
[364803506,1749246644199,-1535.01,0.00021095,2]
[364803508,1749246644209,-440.0,0.00021095,2]
[364803510,1749246644219,-440.0,0.00021095,2]
[364803512,1749246644229,-2752.06,0.00021095,2]
[364803514,1749246644239,-1270.58,0.00021095,2]
[364803517,1749246644250,-440.0,0.00021095,2]
[364803519,1749246644260,-2256.09,0.00021095,2]
[364803521,1749246644270,-440.0,0.00021095,2]
[364803523,1749246644281,-630.0,0.00021122,2]
[364803525,1749246644292,-630.0,0.00021149,2]
[364803527,1749246644302,-1631.69417752,0.00021176,4]
[364803529,1749246644312,-630.0,0.00021177,2]
[364803531,1749246644322,-630.0,0.00021204,2]
[364803533,1749246644332,-630.0,0.00021232,2]
[364803535,1749246644343,-630.0,0.00021259,2]
[364803537,1749246644353,-630.0,0.00021286,2]
[364803539,1749246644363,-630.0,0.00021314,2]
[364803542,1749246644374,-1631.69417752,0.00021314,5]
[364803544,1749246644384,-630.0,0.00021341,2]
[364803546,1749246644395,-630.0,0.00021369,2]
[364803548,1749246644405,-440.0,0.00021369,2]
[364803550,1749246644415,-440.0,0.00021369,2]
[364803552,1749246644425,-1661.79,0.00021369,2]
[364803554,1749246644436,-1308.92,0.00021369,2]
[364803556,1749246644446,-2532.66,0.00021369,2]
[364803558,1749246644456,-2533.5,0.00021369,2]
[364803561,1749246644467,-440.0,0.00021369,2]
[364803563,1749246644477,-718.97,0.00021369,2]
[364803565,1749246644486,-1045.46,0.00021369,2]
[364803567,1749246644497,-440.0,0.00021369,2]
[364803569,1749246644507,-440.0,0.00021369,2]
[364803571,1749246644518,-440.0,0.00021369,2]
[364803573,1749246644529,-1598.13,0.00021369,2]
[364803575,1749246644540,-440.0,0.00021369,2]
[364803577,1749246644552,-440.0,0.00021369,2]
[364803580,1749246644564,-440.0,0.00021369,2]
[364803593,1749246644685,-440.0,0.00021369,2]
[364803595,1749246644695,-440.0,0.00021369,2]
[364803597,1749246644704,-440.0,0.00021369,2]
[364803599,1749246644714,-440.0,0.00021369,2]
[364803601,1749246644724,-440.0,0.00021369,2]
[364803603,1749246644732,-1467.14,0.00021369,2]
[364803605,1749246644742,-440.0,0.00021369,2]
[364803607,1749246644751,-1217.48,0.00021369,2]
[364803609,1749246644760,-545.3,0.00021369,2]
[364803611,1749246644770,-440.0,0.00021369,2]
[364803613,1749246644779,-2756.04,0.00021369,2]
[364803615,1749246644789,-440.0,0.00021369,2]
[364803617,1749246644798,-440.0,0.00021369,2]
[364803619,1749246644808,-440.0,0.00021369,2]
[364803621,1749246644817,-350.0,0.00021369,2]
[364803623,1749246644827,-440.0,0.00021369,2]
[364803625,1749246644836,-440.0,0.00021369,2]
[364803627,1749246644846,-1347.95,0.00021369,2]
[364803629,1749246644855,-440.0,0.00021369,2]
[364803631,1749246644865,-1535.01,0.00021369,2]
[364803634,1749246644874,-440.0,0.00021369,2]
[364803636,1749246644884,-440.0,0.00021369,2]
[364803638,1749246644893,-2752.06,0.00021369,2]
[364803639,1749246644903,-1270.58,0.00021369,2]
[364803642,1749246644912,-440.0,0.00021369,2]
[364803644,1749246644921,-2256.09,0.00021369,2]
[364803645,1749246644930,-440.0,0.00021369,2]
[364803648,1749246644939,-630.0,0.00021396,2]
[364803650,1749246644950,-630.0,0.00021423,2]
[364803652,1749246644959,-150.0,0.0002143,2]
[364803654,1749246644968,-630.0,0.00021451,2]
[364803655,1749246644977,-1631.69417752,0.00021452,5]
[364803657,1749246644987,-630.0,0.00021478,2]
[364803659,1749246644996,-3156.86977727,0.00021544,2]
[364803661,1749246645006,-500.0,0.0002158,2]
[364803664,1749246645015,-1631.69417752,0.0002159,5]
[364803666,1749246645024,-353.8,0.000216,2]
[364803668,1749246645034,-377.54024,0.00021621,2]
[364803669,1749246645043,-536.41,0.00021642,2]
[364803671,1749246645052,-440.0,0.00021643,2]
[364803673,1749246645061,-440.0,0.00021643,2]
[364803675,1749246645070,-1661.79,0.00021643,2]
[364803677,1749246645079,-1308.92,0.00021643,2]
[364803679,1749246645088,-2532.66,0.00021643,2]
[364803681,1749246645097,-2533.5,0.00021643,2]
[364803683,1749246645106,-440.0,0.00021643,2]
[364803685,1749246645115,-718.97,0.00021643,2]
[364803687,1749246645124,-1045.46,0.00021643,2]
[364803689,1749246645133,-440.0,0.00021643,2]
[364803691,1749246645142,-440.0,0.00021643,2]
[364803693,1749246645151,-440.0,0.00021643,2]
[364803695,1749246645161,-1598.13,0.00021643,2]
[364803697,1749246645170,-440.0,0.00021643,2]
[364803699,1749246645179,-440.0,0.00021643,2]
[364803701,1749246645188,-440.0,0.00021643,2]
[364803703,1749246645196,-440.0,0.00021643,2]
[364803705,1749246645205,-440.0,0.00021643,2]
[364803707,1749246645215,-440.0,0.00021643,2]
[364803709,1749246645224,-440.0,0.00021643,2]
[364803711,1749246645233,-440.0,0.00021643,2]
[364803713,1749246645242,-1467.14,0.00021643,2]
[364803715,1749246645251,-440.0,0.00021643,2]
[364803717,1749246645261,-1217.48,0.00021643,2]
[364803719,1749246645270,-545.3,0.00021643,2]
[364803722,1749246645280,-440.0,0.00021643,2]
[364803724,1749246645290,-2756.04,0.00021643,2]
[364803726,1749246645299,-440.0,0.00021643,2]
[364803727,1749246645308,-440.0,0.00021643,2]
[364803731,1749246645318,-440.0,0.00021643,2]
[364803734,1749246645327,-440.0,0.00021643,2]
[364803737,1749246645336,-440.0,0.00021643,2]
[364803739,1749246645346,-1347.95,0.00021643,2]
[364803741,1749246645355,-440.0,0.00021643,2]
[364803743,1749246645364,-1535.01,0.00021643,2]
[364803745,1749246645373,-440.0,0.00021643,2]
[364803747,1749246645383,-440.0,0.00021643,2]
[364803750,1749246645392,-2752.06,0.00021643,2]
[364803752,1749246645401,-1270.58,0.00021643,2]
[364803754,1749246645410,-440.0,0.00021643,2]
[364803756,1749246645420,-2256.09,0.00021643,2]
[364803758,1749246645429,-440.0,0.00021643,2]
[364803759,1749246645438,-500.0,0.00021656,2]
[364803762,1749246645448,-500.0,0.00021656,2]
[364803764,1749246645457,-501.98446049,0.00021656,2]
[364803765,1749246645466,-500.0,0.00021656,2]
[364803768,1749246645476,-500.0,0.00021656,2]
[364803770,1749246645486,-500.0,0.00021656,2]
[364803772,1749246645496,-501.89640537,0.00021656,2]
[364803774,1749246645505,-500.0,0.00021656,2]
[364803775,1749246645515,-600.0,0.00021656,2]
[364803778,1749246645524,-500.0,0.00021656,2]
[364803779,1749246645534,-500.0,0.00021656,2]
[364803782,1749246645543,-500.0,0.00021656,2]
[364803784,1749246645552,-500.0,0.00021656,2]
[364803786,1749246645562,-151.0,0.00021661,2]
[364803788,1749246645573,-207.4,0.00021661,2]
[364803790,1749246645584,-151.0,0.00021661,2]
[364803792,1749246645594,-151.0,0.00021661,2]
[364803793,1749246645603,-151.0,0.00021661,2]
[364803795,1749246645819,-1688.0,0.00021661,2]
[364803797,1749246645829,-500.0,0.00021661,2]
[364803799,1749246645839,-500.0,0.00021661,2]
[364803802,1749246645848,-151.0,0.00021661,2]
[364803804,1749246645857,-500.0,0.00021661,2]
[364803806,1749246645867,-500.0,0.00021661,2]
[364803807,1749246645875,-151.0,0.00021661,2]
[364803809,1749246645885,-500.0,0.00021661,2]
[364803811,1749246645896,-500.0,0.00021661,2]
[364803813,1749246645905,-151.0,0.00021661,2]
[364803815,1749246645915,-500.0,0.00021661,2]
[364803817,1749246645923,-500.0,0.00021661,2]
[364803819,1749246645934,-226.76390347,0.00021661,2]
[364803821,1749246645943,-500.0,0.00021661,2]
[364803823,1749246645952,-500.0,0.00021661,2]
[364803825,1749246645961,-500.0,0.00021661,2]
[364803827,1749246645970,-500.0,0.00021661,2]
[364803829,1749246645979,-500.0,0.00021661,2]
[364803831,1749246645988,-500.0,0.00021661,2]
[364803833,1749246645997,-500.0,0.00021661,2]
[364803835,1749246646006,-500.0,0.00021661,2]
[364803837,1749246646016,-500.0,0.00021661,2]
[364803839,1749246646025,-500.0,0.00021661,2]
[364803841,1749246646035,-500.0,0.00021661,2]
[364803843,1749246646044,-500.0,0.00021661,2]
[364803845,1749246646054,-500.0,0.00021661,2]
[364803847,1749246646062,-500.0,0.00021661,2]
[364803849,1749246646071,-500.0,0.00021661,2]
[364803851,1749246646080,-5000.0,0.00021661,2]
[364803853,1749246646089,-500.0,0.00021661,2]
[364803855,1749246646098,-500.0,0.00021661,2]
[364803858,1749246646107,-500.0,0.00021661,2]
[364803860,1749246646120,-500.0,0.00021661,2]
[364803861,1749246646129,-500.0,0.00021661,2]
[364803862,1749246646138,-500.0,0.00021661,2]
[364803863,1749246646147,-500.0,0.00021661,2]
[364803864,1749246646156,-300.0,0.00021661,2]
[364803865,1749246646165,-300.0,0.00021661,2]
[364803866,1749246646173,-300.0,0.00021661,2]
[364803867,1749246646182,-300.0,0.00021661,2]
[364803868,1749246646191,-204.71631625,0.00021661,2]
[364803869,1749246646200,-159.158105,0.00021698,6]
[364803870,1749246646209,-220.05910324,0.00021716,2]
[364803871,1749246646218,-1631.69417752,0.00021728,5]
[364803872,1749246646227,-151.0,0.000218,3]
[364803873,1749246646236,-54978.75,0.000218,2]
[364803874,1749246646245,-1000.0,0.00021849,2]
[364803875,1749246646254,-1631.69417752,0.00021866,6]
[364803876,1749246646263,-536.41,0.00021916,2]
[364803877,1749246646272,-440.0,0.00021917,2]
[364803878,1749246646281,-440.0,0.00021917,2]
[364803879,1749246646290,-441.98,0.00021917,2]
[364803880,1749246646299,-1661.79,0.00021917,2]
[364803881,1749246646308,-441.98,0.00021917,2]
[364803882,1749246646317,-441.98,0.00021917,2]
[364803883,1749246646326,-441.98,0.00021917,2]
[364803885,1749246646335,-441.98,0.00021917,2]
[364803887,1749246646344,-441.98,0.00021917,2]
[364803888,1749246646352,-441.98,0.00021917,2]
[364803890,1749246646361,-441.98,0.00021917,2]
[364803893,1749246646371,-441.98,0.00021917,2]
[364803894,1749246646380,-1308.92,0.00021917,2]
[364803896,1749246646389,-441.98,0.00021917,2]
[364803898,1749246646399,-441.98,0.00021917,2]
[364803901,1749246646408,-2532.66,0.00021917,2]
[364803902,1749246646417,-2533.5,0.00021917,2]
[364803904,1749246646427,-440.0,0.00021917,2]
[364803906,1749246646436,-718.97,0.00021917,2]
[364803908,1749246646446,-1045.46,0.00021917,2]
[364803911,1749246646455,-440.0,0.00021917,2]
[364803912,1749246646465,-440.0,0.00021917,2]
[364803914,1749246646474,-440.0,0.00021917,2]
[364803916,1749246646484,-1598.13,0.00021917,2]
[364803919,1749246646493,-440.0,0.00021917,2]
[364803921,1749246646503,-440.0,0.00021917,2]
[364803923,1749246646513,-440.0,0.00021917,2]
[364803925,1749246646523,-555.22,0.00021917,2]
[364803926,1749246646532,-330.0,0.00021917,2]
[364803928,1749246646542,-440.0,0.00021917,2]
[364803930,1749246646552,-330.0,0.00021917,2]
[364803932,1749246646561,-500.0,0.00021917,2]
[364803934,1749246646572,-330.0,0.00021917,2]
[364803936,1749246646583,-1467.14,0.00021917,2]
[364803938,1749246646593,-440.0,0.00021917,2]
[364803940,1749246646603,-1217.48,0.00021917,2]
[364803942,1749246646611,-500.0,0.00021917,2]
[364803944,1749246646622,-500.0,0.00021917,2]
[364803946,1749246646631,-500.0,0.00021917,2]
[364803948,1749246646640,-500.0,0.00021917,2]
[364803950,1749246646650,-500.0,0.00021917,2]
[364803952,1749246646659,-500.0,0.00021917,2]
[364803954,1749246646669,-500.0,0.00021917,2]
[364803956,1749246646679,-500.0,0.00021917,2]
[364803958,1749246646689,-500.0,0.00021917,2]
[364803960,1749246646698,-500.0,0.00021917,2]
[364803962,1749246646708,-187.11845398,0.00021917,2]
[364803964,1749246646717,-545.3,0.00021917,2]
[364803966,1749246646726,-216.22,0.00021917,2]
[364803968,1749246646736,-2756.04,0.00021917,2]
[364803970,1749246646745,-260.0,0.00021917,2]
[364803972,1749246646755,-440.0,0.00021917,2]
[364803974,1749246646764,-440.0,0.00021917,2]
[364803976,1749246646774,-440.0,0.00021917,2]
[364803978,1749246646784,-440.0,0.00021917,2]
[364803980,1749246646794,-1347.95,0.00021917,2]
[364803982,1749246646803,-330.0,0.00021917,2]
[364803984,1749246646813,-1535.01,0.00021917,2]
[364803986,1749246646822,-440.0,0.00021917,2]
[364803988,1749246646832,-440.0,0.00021917,2]
[364803991,1749246646842,-2752.06,0.00021917,2]
[364803992,1749246646851,-1270.58,0.00021917,2]
[364803995,1749246646860,-440.0,0.00021917,2]
[364803997,1749246646869,-2256.09,0.00021917,2]
[364803998,1749246646878,-440.0,0.00021917,2]
[364804000,1749246646888,-962.0,0.00021964,2]
[364804002,1749246646897,-515.44,0.00021964,2]
[364804004,1749246646908,-405.0,0.00021964,2]
[364804006,1749246646917,-1596.0,0.00021964,7]
[364804008,1749246646927,-1596.0,0.00021964,7]
[364804011,1749246646936,-536.41,0.00021999,2]
[364804012,1749246646945,-342.0,0.00022,7]
[364804014,1749246646954,-21420.1889366,0.00022,2]
[364804016,1749246646963,-151.0,0.00022,7]
[364804018,1749246646973,-984.69,0.00022,7]
[364804020,1749246646982,-1631.69417752,0.00022003,6]
[364804022,1749246646992,-500.0,0.00022053,2]
[364804024,1749246647001,-500.0,0.00022106,2]
[364804027,1749246647011,-500.0,0.00022106,2]
[364804029,1749246647020,-500.0,0.00022106,2]
[364804030,1749246647030,-502.14852776,0.00022106,2]
[364804032,1749246647039,-500.0,0.00022106,2]
[364804034,1749246647048,-500.0,0.00022106,2]
[364804036,1749246647058,-500.0,0.00022106,2]
[364804039,1749246647067,-500.0,0.00022106,2]
[364804040,1749246647076,-1000.0,0.00022128,2]
[364804052,1749246647172,-1631.69417752,0.00022141,6]
[364804054,1749246647182,-440.0,0.00022191,2]
[364804056,1749246647192,-1661.79,0.00022191,2]
[364804058,1749246647202,-1308.92,0.00022191,2]
[364804060,1749246647212,-441.98,0.00022191,2]
[364804062,1749246647221,-2532.66,0.00022191,2]
[364804064,1749246647230,-2533.5,0.00022191,2]
[364804066,1749246647239,-320.0,0.00022191,2]
[364804068,1749246647249,-718.97,0.00022191,2]
[364804070,1749246647258,-1045.46,0.00022191,2]
[364804072,1749246647267,-440.0,0.00022191,2]
[364804073,1749246647276,-440.0,0.00022191,2]
[364804076,1749246647285,-440.0,0.00022191,2]
[364804077,1749246647295,-1598.13,0.00022191,2]
[364804080,1749246647305,-440.0,0.00022191,2]
[364804082,1749246647315,-440.0,0.00022191,2]
[364804084,1749246647324,-440.0,0.00022191,2]
[364804086,1749246647333,-440.0,0.00022191,2]
[364804088,1749246647343,-1467.14,0.00022191,2]
[364804090,1749246647352,-440.0,0.00022191,2]
[364804092,1749246647361,-1217.48,0.00022191,2]
[364804094,1749246647370,-545.3,0.00022191,2]
[364804096,1749246647380,-2756.04,0.00022191,2]
[364804097,1749246647389,-440.0,0.00022191,2]
[364804099,1749246647399,-440.0,0.00022191,2]
[364804101,1749246647408,-440.0,0.00022191,2]
[364804104,1749246647418,-440.0,0.00022191,2]
[364804106,1749246647428,-1347.95,0.00022191,2]
[364804107,1749246647437,-1535.01,0.00022191,2]
[364804109,1749246647447,-440.0,0.00022191,2]
[364804111,1749246647456,-440.0,0.00022191,2]
[364804114,1749246647466,-2752.06,0.00022191,2]
[364804115,1749246647475,-1270.58,0.00022191,2]
[364804118,1749246647485,-440.0,0.00022191,2]
[364804120,1749246647496,-2256.09,0.00022191,2]
[364804122,1749246647505,-440.0,0.00022191,2]
[364804123,1749246647515,-151.0,0.000222,5]
[364804125,1749246647525,-1000.0,0.00022204,2]
[364804127,1749246647535,-1001.49859335,0.00022204,2]
[364804129,1749246647544,-1200.0,0.00022204,2]
[364804131,1749246647554,-1000.0,0.00022204,2]
[364804133,1749246647564,-1000.0,0.00022204,2]
[364804135,1749246647577,-1000.0,0.00022204,2]
[364804137,1749246647586,-152.51297585,0.00022209,2]
[364804139,1749246647596,-5000.0,0.00022209,2]
[364804141,1749246647606,-610.6372,0.00022246,3]
[364804143,1749246647617,-1631.69417752,0.00022279,6]
[364804145,1749246647626,-536.41,0.00022299,2]
[364804147,1749246647635,-521.44,0.000223,14]
[364804149,1749246647645,-41522.0,0.000223,2]
[364804151,1749246647656,-1631.69417752,0.00022417,7]
[364804153,1749246647665,-440.0,0.00022465,2]
[364804155,1749246647675,-1661.79,0.00022465,2]
[364804157,1749246647684,-1308.92,0.00022465,2]
[364804159,1749246647694,-441.98,0.00022465,2]
[364804161,1749246647704,-2532.66,0.00022465,2]
[364804163,1749246647716,-2533.5,0.00022465,2]
[364804165,1749246647726,-718.97,0.00022465,2]
[364804167,1749246647735,-1045.46,0.00022465,2]
[364804169,1749246647744,-440.0,0.00022465,2]
[364804171,1749246647753,-440.0,0.00022465,2]
[364804173,1749246647762,-440.0,0.00022465,2]
[364804175,1749246647771,-1598.13,0.00022465,2]
[364804177,1749246647780,-440.0,0.00022465,2]
[364804179,1749246647789,-440.0,0.00022465,2]
[364804181,1749246647799,-440.0,0.00022465,2]
[364804183,1749246647808,-440.0,0.00022465,2]
[364804185,1749246647817,-468.93822417,0.00022465,2]
[364804187,1749246647827,-1467.14,0.00022465,2]
[364804189,1749246647836,-440.0,0.00022465,2]
[364804191,1749246647846,-1217.48,0.00022465,2]
[364804193,1749246647855,-545.3,0.00022465,2]
[364804195,1749246647864,-2756.04,0.00022465,2]
[364804197,1749246647873,-440.0,0.00022465,2]
[364804199,1749246647883,-440.0,0.00022465,2]
[364804201,1749246647892,-440.0,0.00022465,2]
[364804203,1749246647902,-440.0,0.00022465,2]
[364804205,1749246647911,-1347.95,0.00022465,2]
[364804208,1749246647921,-1535.01,0.00022465,2]
[364804210,1749246647931,-440.0,0.00022465,2]
[364804212,1749246647940,-440.0,0.00022465,2]
[364804214,1749246647949,-2752.06,0.00022465,2]
[364804216,1749246647958,-1270.58,0.00022465,2]
[364804218,1749246647967,-440.0,0.00022465,2]
[364804220,1749246647976,-2256.09,0.00022465,2]
[364804222,1749246647985,-440.0,0.00022465,2]
[364804224,1749246647994,-3156.86977727,0.00022502,2]
[364804226,1749246648003,-1631.69417752,0.00022555,7]
[364804228,1749246648013,-151.0,0.000226,8]
[364804230,1749246648022,-1000.0,0.00022601,2]
[364804232,1749246648031,-1000.0,0.00022654,2]
[364804233,1749246648040,-1000.0,0.00022654,2]
[364804235,1749246648050,-1000.0,0.00022654,2]
[364804237,1749246648059,-1000.0,0.00022654,2]
[364804240,1749246648069,-1500.0,0.00022676,2]
[364804241,1749246648078,-1631.69417752,0.00022693,7]
[364804243,1749246648088,-536.41,0.00022699,2]
[364804245,1749246648099,-12143.38172446,0.000227,2]
[364804247,1749246648109,-440.0,0.00022739,2]
[364804249,1749246648119,-1661.79,0.00022739,2]
[364804251,1749246648129,-1308.92,0.00022739,2]
[364804253,1749246648138,-441.98,0.00022739,2]
[364804255,1749246648147,-2532.66,0.00022739,2]
[364804257,1749246648157,-2533.5,0.00022739,2]
[364804259,1749246648166,-718.97,0.00022739,2]
[364804261,1749246648175,-1045.46,0.00022739,2]
[364804263,1749246648185,-440.0,0.00022739,2]
[364804265,1749246648194,-330.0,0.00022739,2]
[364804267,1749246648203,-440.0,0.00022739,2]
[364804269,1749246648213,-1598.13,0.00022739,2]
[364804271,1749246648223,-440.0,0.00022739,2]
[364804273,1749246648233,-440.0,0.00022739,2]
[364804275,1749246648243,-440.0,0.00022739,2]
[364804277,1749246648252,-440.0,0.00022739,2]
[364804279,1749246648262,-1467.14,0.00022739,2]
[364804281,1749246648271,-440.0,0.00022739,2]
[364804283,1749246648281,-1217.48,0.00022739,2]
[364804285,1749246648291,-545.3,0.00022739,2]
[364804287,1749246648300,-2756.04,0.00022739,2]
[364804289,1749246648310,-440.0,0.00022739,2]
[364804291,1749246648319,-440.0,0.00022739,2]
[364804293,1749246648329,-440.0,0.00022739,2]
[364804295,1749246648339,-344.52,0.00022739,2]
[364804297,1749246648348,-1347.95,0.00022739,2]
[364804299,1749246648358,-1535.01,0.00022739,2]
[364804301,1749246648368,-440.0,0.00022739,2]
[364804303,1749246648378,-440.0,0.00022739,2]
[364804305,1749246648387,-2752.06,0.00022739,2]
[364804307,1749246648397,-1270.58,0.00022739,2]
[364804309,1749246648407,-440.0,0.00022739,2]
[364804311,1749246648417,-440.0,0.00022739,2]
[364804313,1749246648426,-2256.09,0.00022739,2]
[364804315,1749246648437,-1500.0,0.00022752,2]
[364804317,1749246648447,-1800.0,0.00022752,2]
[364804319,1749246648457,-1500.0,0.00022752,2]
[364804322,1749246648475,-525.52033247,0.00022752,2]
[364804324,1749246648485,-587.0,0.00022774,2]
[364804326,1749246648495,-587.0,0.00022774,2]
[364804328,1749246648505,-521.44,0.000228,14]
[364804330,1749246648515,-1631.69417752,0.00022831,8]
[364804332,1749246648525,-54978.75,0.000229,2]
[364804334,1749246648535,-1000.0,0.00022945,2]
[364804336,1749246648545,-1631.69417752,0.00022969,8]
[364804338,1749246648555,-536.41,0.00022999,2]
[364804340,1749246648565,-536.41,0.00022999,2]
[364804342,1749246648578,-536.41,0.00022999,2]
[364804344,1749246648588,-536.41,0.00022999,2]
[364804346,1749246648598,-536.41,0.00022999,2]
[364804348,1749246648607,-34629.22620061,0.00023,2]
[364804350,1749246648617,-628.98551686,0.00023,20]
[364804352,1749246648626,-10022.3948716,0.00023,2]
[364804354,1749246648636,-1327.39687771,0.00023,2]
[364804356,1749246648646,-33020.0,0.00023,20]
[364804358,1749246648656,-394.18,0.00023,2]
[364804360,1749246648665,-500.0,0.00023,4]
[364804361,1749246648674,-500.0,0.00023,3]
[364804362,1749246648684,-1596.0,0.00023,7]
[364804363,1749246648694,-1596.0,0.00023,7]
[364804364,1749246648703,-151.0,0.00023,7]
[364804365,1749246648712,-151.0,0.00023,7]
[364804366,1749246648722,-440.0,0.00023013,2]
[364804367,1749246648734,-1661.79,0.00023013,2]
[364804368,1749246648744,-1308.92,0.00023013,2]
[364804369,1749246648754,-441.98,0.00023013,2]
[364804371,1749246648763,-2532.66,0.00023013,2]
[364804373,1749246648773,-2533.5,0.00023013,2]
[364804375,1749246648782,-718.97,0.00023013,2]
[364804377,1749246648791,-1045.46,0.00023013,2]
[364804379,1749246648801,-440.0,0.00023013,2]
[364804381,1749246648809,-440.0,0.00023013,2]
[364804383,1749246648818,-1598.13,0.00023013,2]
[364804385,1749246648828,-440.0,0.00023013,2]
[364804387,1749246648838,-440.0,0.00023013,2]
[364804389,1749246648847,-440.0,0.00023013,2]
[364804391,1749246648856,-551.9,0.00023013,2]
[364804393,1749246648866,-1467.14,0.00023013,2]
[364804395,1749246648875,-440.0,0.00023013,2]
[364804397,1749246648885,-1217.48,0.00023013,2]
[364804399,1749246648893,-545.3,0.00023013,2]
[364804401,1749246648903,-2756.04,0.00023013,2]
[364804403,1749246648912,-440.0,0.00023013,2]
[364804405,1749246648922,-440.0,0.00023013,2]
[364804407,1749246648931,-440.0,0.00023013,2]
[364804409,1749246648941,-1347.95,0.00023013,2]
[364804411,1749246648950,-1535.01,0.00023013,2]
[364804413,1749246648959,-440.0,0.00023013,2]
[364804416,1749246648968,-440.0,0.00023013,2]
[364804417,1749246648978,-2752.06,0.00023013,2]
[364804420,1749246648988,-1270.58,0.00023013,2]